Cogmind - Beta 16 --- EXPLORER MODE // 2025.11.17 @ 15:16:36 Player: K.K.Y. Result: Destroyed by H-66 Slayer with Gauss Rifle Performance ------------- Evolutions (4) 2000 Regions Visited (8) 1600 Robots Destroyed (154) 770 Value Destroyed (5927) 5927 Prototype IDs (40) 800 Alien Tech Used (0) 0 Bonus (127) 127 TOTAL SCORE: 11224 Bonus ------- Follower Combat Kills 258 Friendly Fire -131 Cogmind --------- Core Integrity 0/850 Matter 133/300 Energy 200/200 System Corruption 2% Temperature Cool (0) Movement Core (950) Ox18 Location -6/Factory Parts ------- > --- POWER (2) -------- Micro Nuclear Core Micro Nuclear Core > --- PROPULSION (5) --- (None) > --- UTILITY (7) ------ Improved Heat Sink Improved Heat Sink High-capacity Storage Unit Structural Scanner Targeting Computer Target Analyzer Improved Hacking Suite > --- WEAPON (2) ------- (None) > --- INVENTORY (20) --- Flexi-carbon Leg Flexi-carbon Leg Machine Analyzer Relay Coupler [NC] (27) System Restoration Module System Restoration Module System Restoration Module Recalibrator Shock Rifle Shock Rifle Heavy EM Shotgun Lightning Gun Lightning Gun Lightning Gun Gauss Rifle Guided EMP Blaster Scatter Rocket Array Remote Datajack Great Maul Peak State ------------ > --- POWER ------------ Improved Deuterium Engine Reinforced Deuterium Engine > --- PROPULSION ------- Medium Treads Armored Heavy Treads Armored Heavy Treads > --- UTILITY ---------- High-capacity Storage Unit Advanced Weight Redist. System Structural Scanner Improved Medium Armor Plating System Restoration Module Decoy Drone Bay > --- WEAPON ----------- Improved Lightning Gun Impact Mace > --- INVENTORY -------- Medium Treads Improved Heat Sink Advanced Weight Redist. System Machine Analyzer System Restoration Module System Restoration Module System Restoration Module Recalibrator Heavy EM Shotgun Lightning Gun Lightning Gun Lightning Gun Improved Lightning Gun Improved Heavy Laser Railgun Remote Datajack Great Maul [Rating: 89] Favorites ----------- Power Ion Engine Engine Ion Engine Power Core Fission Core Propulsion Light Treads Treads Light Treads Leg Carbon-fiber Leg Hover Unit Cooled Airjet Flight Unit Improved Flight Unit Utility High-capacity Storage Unit Device Structural Scanner Storage High-capacity Storage Unit Processor Transport Network Coupler Hackware Improved Hacking Suite Protection Makeshift Light Armor Plating Weapon Bore Cannon Energy Gun Improved Lightning Gun Energy Cannon EM Pulse Cannon Ballistic Gun Shotgun Ballistic Cannon Bore Cannon Launcher Guided EMP Blaster Special Weapon Mining Laser Impact Weapon Impact Mace Slashing Weapon Power Sword Build | -11 -10 -10 -10 -8 -7 -6 -6 -6 ------- Run | Yrd Mat Min Sub Mat Fac Fac Was Fac Slots Evolved 9 | . 1 . . 4 2 2 . . Power 1 | . . . . 1 . . . . Propulsion 3 | . 1 . . . 1 1 . . Utility 5 | . . . . 3 1 1 . . Weapon . | . . . . . . . . . Parts Attached 125 | 5 6 3 8 37 9 16 3 38 Power 20 | 1 . . . 8 . 3 . 8 Engine 15 | 1 . . . 6 . 2 . 6 Core 5 | . . . . 2 . 1 . 2 Reactor . | . . . . . . . . . Propulsion 31 | 2 1 2 3 9 5 3 2 4 Treads 18 | 2 1 2 1 4 4 . . 4 Leg 4 | . . . 1 3 . . . . Wheel . | . . . . . . . . . Hover 5 | . . . . . . 3 2 . Flight 4 | . . . 1 2 1 . . . Utility 40 | 1 3 . 3 9 3 6 1 14 Device 20 | . . . 2 3 2 3 1 9 Storage 5 | 1 2 . . 2 . . . . Processor 4 | . . . . 1 . 1 . 2 Hackware 1 | . . . . . . . . 1 Protection 10 | . 1 . 1 3 1 2 . 2 Artifact . | . . . . . . . . . Weapon 34 | 1 2 1 2 11 1 4 . 12 Energy Gun 12 | 1 . . . 6 1 1 . 3 Energy Cannon 5 | . . . . 2 . 1 . 2 Ballistic Gun 7 | . 1 1 . 2 . 1 . 2 Ballistic Cannon 3 | . . . 2 1 . . . . Launcher 4 | . . . . . . . . 4 Special Weapon 1 | . 1 . . . . . . . Impact Weapon 1 | . . . . . . 1 . . Slashing Weapon 1 | . . . . . . . . 1 Piercing Weapon . | . . . . . . . . . Special Melee Weapon . | . . . . . . . . . Unidentified Prototypes 21 | . . . . 7 2 2 . 10 Parts Lost 51 | . . 1 6 7 1 14 2 20 Power 10 | . . . 1 1 . 3 . 5 Propulsion 13 | . . . 2 2 . 4 1 4 Utility 18 | . . . 2 2 1 5 1 7 Weapon 10 | . . 1 1 2 . 2 . 4 Highest Loss Streak 12 | . . 1 2 3 1 12 2 6 To Critical Strikes . | . . . . . . . . . Average Backups 16 | 1 6 18 17 17 19 18 11 16 Power . | . . . 1 . . . . 1 Propulsion . | . . 1 1 . 1 1 1 . Utility 7 | . 1 7 8 9 9 8 3 5 Weapon 7 | . 4 8 7 5 8 6 5 8 Tool/Special . | . . . . . . . . . Unused Backups 29 | . . 1 . 13 . . . 15 Power 1 | . . . . . . . . 1 Propulsion 4 | . . . . 1 . . . 3 Utility 9 | . . . . 3 . . . 6 Weapon 14 | . . 1 . 9 . . . 4 Tool/Special 1 | . . . . . . . . 1 Average Slot Usage (%) 74 | . 81 83 68 75 95 79 77 65 Engine 7 | . 12 12 3 7 14 9 3 7 Treads 18 | . 31 31 17 11 27 18 . 11 Leg 1 | . . . . 6 . . . . Device 8 | . . . . 8 17 13 24 21 Storage 9 | . 12 12 11 7 7 6 6 6 Processor 2 | . . . . 6 7 6 2 . Protection 8 | . 10 12 9 10 7 8 . 2 Energy Gun 3 | . 7 . . 5 7 5 . 3 Energy Cannon 1 | . . . . 3 . . 6 2 Ballistic Gun 2 | . 4 12 1 3 7 1 . . Ballistic Cannon 6 | . . . 21 1 . . . . Impact Weapon 1 | . . . . . . 4 6 2 Peak Build Rating 89 | 5 10 13 38 60 53 60 68 89 Average Rating 34 | 2 7 12 17 37 49 50 60 61 On Entrance 30 | . 5 10 13 38 44 53 49 58 Avg Prop Armor Cover (%) 9 | . . . 10 . . . . 9 Naked Turns . | . . . . . . . . . Heaviest Build 135 | 17 52 52 61 135 77 86 86 97 Greatest Support 157 | 40 60 60 60 95 88 88 55 157 Greatest Overweight (x) 24 | . 1 1 18 24 24 21 2 21 Average Overweight (x) 1 | . . . 3 . . . 1 . Largest Inventory Capacity 20 | 10 20 20 20 20 20 20 20 20 Average Capacity 19 | 7 16 20 20 20 20 20 20 20 Most Carried 20 | 5 14 20 20 20 20 20 14 20 Average Carried 17 | 1 6 18 19 19 20 19 11 16 Final Capacity 20 | 10 20 20 20 20 20 20 20 20 Final Carried 20 | . 14 19 20 20 20 12 13 20 Class Distribution -------------------- 98% | Hacker-Mutant Dominant Class ---------------- Hacker-Mutant | -10/Materials Hacker-Mutant | -10/Mines Hacker-Mutant | -10/Subcaves Hacker-Mutant | -8/Materials Hacker-Mutant | -7/Factory Hacker-Mutant | -6/Factory Hacker-Assassin | -6/Waste Hacker-Mutant | -6/Factory Resources | -11 -10 -10 -10 -8 -7 -6 -6 -6 ----------- Run | Yrd Mat Min Sub Mat Fac Fac Was Fac Matter Collected 3356 | 234 124 35 962 782 246 210 . 763 Remotely . | . . . . . . . . . Salvage Created 6689 | . 661 29 481 912 643 1629 . 2334 Parts 310 | . 27 . 36 55 31 63 . 98 Haulers Intercepted 8 | . 1 . . 3 1 1 . 2 Recyclers Shooed 4 | . 1 . . 1 1 . . 1 Parts Field Recycled . | . . . . . . . . . Retrieved Matter . | . . . . . . . . . Parts Self-Destructed . | . . . . . . . . . Prevented . | . . . . . . . . . Parts Restored . | . . . . . . . . . Kills | -11 -10 -10 -10 -8 -7 -6 -6 -6 ------- Run | Yrd Mat Min Sub Mat Fac Fac Was Fac Combat Hostiles Destroyed 117 | . 9 2 14 17 12 27 . 36 Melee 4 | . . . . . . . . 4 Guns 62 | . 7 2 6 3 12 19 . 13 Cannons 24 | . . . 8 13 . 1 . 2 AOE 10 | . 2 . . 1 . . . 7 Classes Destroyed 19 | . 5 2 4 4 1 1 . 2 Worker 11 | . . . . 2 4 . . 5 Builder 2 | . . . . . . . . 2 Tunneler 1 | . . . . 1 . . . . Hauler 8 | . 1 . . 3 1 1 . 2 Recycler 4 | . 1 . . . 1 . . 2 Mechanic 1 | . 1 . . . . . . . Turret 2 | . . . 2 . . . . . Watcher 8 | . 3 . . 1 1 3 . . Swarmer 23 | . . . 4 2 1 7 . 9 Grunt 55 | . 9 . . 9 9 15 . 13 Brawler 1 | . . . . . . . . 1 Duelist 1 | . . . . . . 1 . . Sentry 12 | . . . . 5 . 2 . 5 Demolisher 1 | . . 1 . . . . . . Hunter 8 | . . . . 1 1 1 . 5 Programmer 5 | . . . . . 1 1 . 3 Artisan 1 | . . . 1 . . . . . Subdweller 10 | . . . 10 . . . . . Assembled 1 | . . 1 . . . . . . Thug 1 | . . . 1 . . . . . Best Kill Streak 9 | . 4 1 5 4 5 7 . 9 Combat Bots Only 8 | . 3 1 3 3 4 7 . 8 Max Kills in Single Turn 4 | . 1 1 2 2 2 1 . 4 Gunslinging 1 | . . . . . . . . 1 Exploded 2 | . 1 . . 1 . . . 2 Melee 1 | . . . . . . . . 1 Uniques/NPCs Destroyed . | . . . . . . . . . Combat | -11 -10 -10 -10 -8 -7 -6 -6 -6 -------- Run | Yrd Mat Min Sub Mat Fac Fac Was Fac Hostile Shots Fired 1381 | . 49 11 76 142 61 366 4 672 Missed 438 | . 20 1 19 41 18 116 . 223 Hits 943 | . 29 10 57 101 43 250 4 449 Melee 6 | . . . . . . 2 4 . Projectile 937 | . 29 10 57 101 43 248 . 449 AOE 13 | . . 11 . . . 2 . . Critical Strikes 38 | . 2 . 2 8 4 11 . 11 Part Disruptions 1 | . . . . . . . . 1 Damage Taken 9260 | . 269 285 840 1035 416 2549 117 3749 Core 1380 | . 15 64 107 287 50 284 32 541 Absorbed by Shields . | . . . . . . . . . Ignored by Resistances 5584 | . 169 163 377 589 246 1529 67 2444 Core Remaining (%) 66 | 100 . . 25 47 92 . . . Volleys Fired 548 | . 62 6 79 61 50 139 . 151 Largest 2 | . 2 1 2 2 2 2 . 2 Hottest 136 | . 123 23 81 136 98 103 . 120 Shots Fired 762 | . 63 6 150 113 94 149 . 187 Gun 500 | . 62 6 29 35 94 146 . 128 Cannon 244 | . . . 121 78 . 3 . 42 Launcher 17 | . . . . . . . . 17 Special 1 | . 1 . . . . . . . Kinetic 329 | . 12 6 150 52 50 18 . 41 Thermal 160 | . 1 . . 48 44 46 . 21 Explosive 3 | . . . . . . . . 3 Electromagnetic 270 | . 50 . . 13 . 85 . 122 Robot Hit Streak 36 | . 15 18 14 25 36 36 . 33 Robot Miss Streak 4 | . 2 1 2 4 4 2 . 3 Penetration Max 1 | . . . . 1 . . . 1 Secondary Targets 7 | . . . . 1 4 1 . 1 Max Gunslinging Chain 1 | . . . . 1 1 1 . 1 Shots Hit Robots 591 | . 53 6 61 90 73 135 . 173 Core Hits 335 | . 27 5 25 39 72 74 . 93 Critical Kills 6 | . . . 3 3 . . . . Critical Parts Destroyed 11 | . . . 5 3 . . . 3 Critical Strikes 25 | . 2 . 11 6 . 3 . 3 Burn 1 | . . . . . . 1 . . Destroy 16 | . . . 10 6 . . . . Blast 1 | . . . 1 . . . . . Corrupt 4 | . 2 . . . . 2 . . Smash 3 | . . . . . . . . 3 Melee Attacks 15 | . . . . . . 4 . 11 Impact 15 | . . . . . . 4 . 11 Slashing . | . . . . . . . . . Piercing . | . . . . . . . . . Sneak Attacks . | . . . . . . . . . Combat Hostiles . | . . . . . . . . . Follow-up Attacks . | . . . . . . . . . Damage Inflicted 13982 | . 1059 120 996 1991 1488 2961 . 5367 Guns 7758 | . 743 111 233 531 1440 2534 . 2166 Cannons 3331 | . . . 763 1359 . 94 . 1115 Explosions 2106 | . 316 . . 51 . 156 . 1583 Melee 661 | . . . . . . 177 . 484 Ramming 126 | . . 9 . 50 48 . . 19 Kinetic 3710 | . 157 111 996 905 508 229 . 804 Thermal 4429 | . 316 . . 788 932 1087 . 1306 Explosive 547 | . . . . . . . . 547 Electromagnetic 4509 | . 586 . . 248 . 1468 . 2207 Impact 661 | . . . . . . 177 . 484 Slashing . | . . . . . . . . . Piercing . | . . . . . . . . . Highest Corruption 4 | . . . 2 . . 4 4 4 Average Corruption 2 | . . . 2 . . 3 4 2 Corruption Purged 4 | . . . . . . . . 4 Corruption Blocked . | . . . . . . . . . Effects 89 | . . . 58 . . 8 3 20 Message Errors 25 | . . . 16 . . . . 9 Matter Fused 18 | . . . 15 . . 2 . 1 Heat Flow Errors 10 | . . . 8 . . 1 . 1 Energy Discharges 11 | . . . 6 . . . 3 2 Parts Fused 4 | . . . 3 . . 1 . . Data Loss (minor) 8 | . . . 5 . . . . 3 Data Loss (major) 6 | . . . 2 . . 1 . 3 Misfires 2 | . . . 1 . . . . 1 Alerts 3 | . . . 2 . . 1 . . Weapon Failures 2 | . . . . . . 2 . . Overload Shots . | . . . . . . . . . Overflow Damage 379 | . 1 . 16 26 . 75 . 261 Projectiles 50 | . . . 16 25 . 5 . 4 Explosions 70 | . 1 . . 1 . . . 68 Melee 259 | . . . . . . 70 . 189 Knockbacks 10 | . . . 4 4 . 1 . 1 Impact 2 | . . . . . . 1 . 1 Kinetic 8 | . . . 4 4 . . . . Secondary . | . . . . . . . . . Self-Inflicted Damage 271 | . 26 . . 20 . . . 225 Shots 20 | . 1 . . 1 . . . 18 Rammed 14 | . . 1 . 5 6 . . 2 Targets Rammed 15 | . . 1 . 6 6 . . 2 Kicked . | . . . . . . . . . Crushed 1 | . . . . 1 . . . . Highest Temperature 748 | . 88 . 213 748 10 261 . 544 Average Temperature 141 | . 30 . 83 256 4 42 . 113 Received Heat Transfer 3555 | . 234 . 243 675 351 1278 . 774 Effects 65 | . . . . 53 . . . 12 Shutdowns 15 | . . . . 12 . . . 3 Energy Bleed 7 | . . . . 5 . . . 2 Interference 7 | . . . . 5 . . . 2 Matter Decay 4 | . . . . 3 . . . 1 Short Circuit 3 | . . . . 3 . . . . Damage (minor) 8 | . . . . 6 . . . 2 Damage (major) 19 | . . . . 17 . . . 2 Damage (core) 2 | . . . . 2 . . . . Siege Activations . | . . . . . . . . . Martial Activations . | . . . . . . . . . Shielding Activations . | . . . . . . . . . Robots Disrupted 2 | . . . . . . 1 . 1 Combat Hostiles 2 | . . . . . . 1 . 1 Robots Corrupted 16 | . . . . . . 8 . 8 Combat Hostiles 15 | . . . . . . 7 . 8 Parts Fried 29 | . 3 . . 1 . 13 . 12 Impact Corruptions 9 | . . . . . . 2 . 7 Robots Melted 1 | . . . . . . . . 1 Combat Hostiles 1 | . . . . . . . . 1 Parts Melted 10 | . . . . 1 . 3 . 6 Heat Transferred 5753 | . 350 . . 1382 892 1629 . 1500 Parts Sabotaged . | . . . . . . . . . Parts Stolen . | . . . . . . . . . Parts Stripped . | . . . . . . . . . Power Chain Reactions 14 | . 5 . . 1 . 2 . 6 Alert | -11 -10 -10 -10 -8 -7 -6 -6 -6 ------- Run | Yrd Mat Min Sub Mat Fac Fac Was Fac Maximum Alert Level 1 | . . . . . . . . 1 Low Security (%) 94 | 100 100 100 . 100 100 100 100 81 Level 1 5 | . . . . . . . . 18 Level 2 . | . . . . . . . . . Level 3 . | . . . . . . . . . Level 4 . | . . . . . . . . . Level 5 . | . . . . . . . . . High Security . | . . . . . . . . . Max Security . | . . . . . . . . . Peak Influence 326 | . 64 20 . 80 92 101 . 326 Initial 22 | . . . . . . 22 . . Average 33 | . 9 . . 9 15 22 . 89 Influence Increases 3746 | . 281 20 150 525 369 747 . 1654 Destroy 0b10 Robot/C 2280 | . 180 20 140 340 240 540 . 820 Destroy 0b10 Robot/NC 195 | . 30 . . 35 35 20 . 75 Destroy Leader 574 | . 48 . 10 118 52 128 . 218 Successful Hack 93 | . . . . 16 26 20 . 31 Disable Machine 156 | . 4 . . 12 . . . 140 Anti-Garrison Action 150 | . . . . . . . . 150 Destroy Structure 223 | . 19 . . 4 1 9 . 190 Lose Combat Pursuer 75 | . . . . . 15 30 . 30 Influence Decreases 3705 | . 281 20 150 525 307 809 . 1613 Entered New Map 40 | . . . . . . 40 . . Time Decay 3251 | . 281 20 130 460 307 639 . 1414 Lost Part 389 | . . . 20 60 . 130 . 179 Lost Ally 20 | . . . . . . . . 20 Purge Threat 5 | . . . . 5 . . . . Squads Dispatched 43 | . 1 . . 6 6 12 . 18 Investigation 15 | . 1 . . 3 3 3 . 5 Extermination 7 | . . . . . 1 3 . 3 Reinforcement 12 | . . . . . 1 4 . 7 Assault 2 | . . . . . . 1 . 1 Garrison 7 | . . . . 3 1 1 . 2 Intercept . | . . . . . . . . . Searches Triggered . | . . . . . . . . . Construction Impeded 2 | . . . . . . . . 2 Haulers Reinforced 5 | . . . . . . 2 . 3 Active Scanning Responses . | . . . . . . . . . Cargo Convoy Interrupts . | . . . . . . . . . Stealth | -11 -10 -10 -10 -8 -7 -6 -6 -6 --------- Run | Yrd Mat Min Sub Mat Fac Fac Was Fac Distress Signals 10 | . 1 . . 5 1 . . 3 Communications Jammed . | . . . . . . . . . Distress Signals . | . . . . . . . . . Times Spotted 204 | . 19 4 19 22 25 44 20 51 Peak Tracking Total 7 | . 3 2 5 4 3 7 6 5 Tactical Retreats 3 | . . . . . 1 1 . 1 Traps | -11 -10 -10 -10 -8 -7 -6 -6 -6 ------- Run | Yrd Mat Min Sub Mat Fac Fac Was Fac Traps Triggered 7 | . 3 . 1 . . 3 . . Indirectly . | . . . . . . . . . Trap Hack Attempts . | . . . . . . . . . Triggered . | . . . . . . . . . Disarmed 12 | . . . . 6 . . . 6 Reprogrammed 4 | . 4 . . . . . . . Reused . | . . . . . . . . . Traps Extracted . | . . . . . . . . . Installed . | . . . . . . . . . Triggered . | . . . . . . . . . Machines | -11 -10 -10 -10 -8 -7 -6 -6 -6 ---------- Run | Yrd Mat Min Sub Mat Fac Fac Was Fac Machines Disabled 45 | . 1 . 5 3 . . . 36 Max in Single Turn 21 | . 1 . 1 1 . . . 21 Garrison Access 4 | . . . . 1 . 1 . 2 Machines Repaired . | . . . . . . . . . Machines Dismantled . | . . . . . . . . . Machines Sabotaged . | . . . . . . . . . Overloaded Fab Kills . | . . . . . . . . . Hacking | -11 -10 -10 -10 -8 -7 -6 -6 -6 --------- Run | Yrd Mat Min Sub Mat Fac Fac Was Fac Machines Accessed 23 | . 4 1 1 6 3 3 . 5 Terminals 15 | . 4 . . 4 1 3 . 3 Fabricators 1 | . . . . . . . . 1 Repair Stations . | . . . . . . . . . Recycling Units . | . . . . . . . . . Scanalyzers 2 | . . . . 1 1 . . . Garrison Access 3 | . . . . 1 1 . . 1 Total Hacks 72 | . 10 1 1 21 9 13 . 17 Successful 41 | . 7 1 1 12 4 7 . 9 Failed 31 | . 3 . . 9 5 6 . 8 Catastrophic 6 | . 1 . . 1 1 1 . 2 Database Lockouts . | . . . . . . . . . Manual . | . . . . . . . . . Terminals 48 | . 10 . . 12 3 13 . 10 Fabricators 6 | . . . . . . . . 6 Repair Stations . | . . . . . . . . . Recycling Units . | . . . . . . . . . Scanalyzers 8 | . . . . 5 3 . . . Garrison Access 8 | . . . . 4 3 . . 1 Terminal Hacks 28 | . 7 1 1 6 1 7 . 5 Part Schematic 4 | . . . . . . 4 . . Robot Schematic 2 | . . . . . 1 . . 1 Robot Analysis 3 | . 1 . . . . 1 . 1 Prototype ID Bank 2 | . . . . 1 . 1 . . Open Door 1 | . . 1 . . . . . . Level Access Points 1 | . . . . 1 . . . . Branch Access Points 1 | . . . . . . . . 1 Emergency Access Points 1 | . . . . 1 . . . . Terminal Index 1 | . . . . . . 1 . . Unreport Threat 1 | . . . . 1 . . . . Locate Traps 1 | . 1 . . . . . . . Disarm Traps 2 | . . . . 1 . . . 1 Reprogram Traps 1 | . 1 . . . . . . . Hauler Manifests 1 | . 1 . . . . . . . Zone Layout 5 | . 3 . . 1 . . . 1 Proto ID Catalog 1 | . . . 1 . . . . . Fabricator Hacks 3 | . . . . . . . . 3 Load Schematic 1 | . . . . . . . . 1 Build 2 | . . . . . . . . 2 Repair Station Hacks . | . . . . . . . . . Recycling Unit Hacks . | . . . . . . . . . Scanalyzer 8 | . . . . 5 3 . . . Retrieve Study 8 | . . . . 5 3 . . . Garrison Access Hacks 2 | . . . . 1 . . . 1 Seal Access 2 | . . . . 1 . . . 1 Unauthorized Hacks . | . . . . . . . . . Terminals . | . . . . . . . . . Fabricators . | . . . . . . . . . Repair Stations . | . . . . . . . . . Recycling Units . | . . . . . . . . . Scanalyzers . | . . . . . . . . . Garrison Access . | . . . . . . . . . Data Cores Recovered . | . . . . . . . . . Used . | . . . . . . . . . Hacking Detections 18 | . 2 . . 6 3 3 . 4 Full Trace Events 14 | . 1 . . 3 3 3 . 4 Feedback Events . | . . . . . . . . . Feedback Blocked . | . . . . . . . . . Robot Schematics Acquired 2 | . . . . . 1 . . 1 Robots Built . | . . . . . . . . . Authchips . | . . . . . . . . . Time . | . . . . . . . . . Total Robot Build Rating . | . . . . . . . . . Part Schematics Acquired 4 | . . . . . . 4 . . Parts Built 1 | . . . . . . . . 1 Authchips . | . . . . . . . . . Time 117 | . . . . . . . . 117 Total Part Build Rating 8 | . . . . . . . . 8 Part Studies Acquired 7 | . . . . 4 3 . . . Parts Repaired . | . . . . . . . . . Time . | . . . . . . . . . Parts Recycled . | . . . . . . . . . Recycled Matter . | . . . . . . . . . Retrieved Matter . | . . . . . . . . . Retrieved Components . | . . . . . . . . . Parts Scanalyzed . | . . . . . . . . . Part Schematics Acquired . | . . . . . . . . . Parts Damaged . | . . . . . . . . . Bothacking | -11 -10 -10 -10 -8 -7 -6 -6 -6 ------------ Run | Yrd Mat Min Sub Mat Fac Fac Was Fac Used RIF Installer . | . . . . . . . . . Robots Hacked . | . . . . . . . . . Non-combat . | . . . . . . . . . Combat . | . . . . . . . . . Robot Hacks Applied . | . . . . . . . . . Relay Couplers Released 4 | . . . . . . 3 . 1 Machine Destruction 4 | . . . . . . 3 . 1 Fabnet Peak Effective % . | . . . . . . . . . Robots Rewired 1 | . . . . . . . . 1 Allies Hacked . | . . . . . . . . . Hacks Repelled . | . . . . . . . . . Allies | -11 -10 -10 -10 -8 -7 -6 -6 -6 -------- Run | Yrd Mat Min Sub Mat Fac Fac Was Fac Total Allies 3 | . . 2 . . . . . 1 Largest Group 2 | . . 2 2 . . . . 1 Highest-Rated Group 85 | . . 42 42 . . . . 85 Highest-Rated Ally 85 | . . 31 31 . . . . 85 Total Orders . | . . . . . . . . . Ally Attacks 47 | . . . 26 . . . . 21 Total Damage 1502 | . . . 412 . . . . 1090 Kills 12 | . . . 3 . . . . 9 Allies Corrupted . | . . . . . . . . . Allies Melted . | . . . . . . . . . Intel | -11 -10 -10 -10 -8 -7 -6 -6 -6 ------- Run | Yrd Mat Min Sub Mat Fac Fac Was Fac Active Infowar (turns) 5607 | . . . 113 1416 638 1062 193 2185 Sensors 117 | . . . . . . 1 116 . IFF 829 | . . . . . . . . 829 Terrain 1424 | . . . 52 . 196 1062 114 . Structural 2465 | . . . 61 . . 26 193 2185 T.N.C. 1884 | . . . . 1416 442 1 25 . ECM 95 | . . . . . 95 . . . Robot Analysis Total 3 | . 1 . . . . 1 . 1 Derelict Logs Recovered 1 | . . . 1 . . . . . Drone Launches 16 | . . . . . . . 16 . Drone Recoveries . | . . . . . . . . . Exploration | -11 -10 -10 -10 -8 -7 -6 -6 -6 ------------- Run | Yrd Mat Min Sub Mat Fac Fac Was Fac Turns Passed 12989 | 56 1100 824 4006 1985 909 1396 193 2520 Spaces Moved 4730 | 52 514 345 1104 766 429 557 170 793 Core 225 | 36 . . 135 7 1 13 . 33 Treads 3888 | 16 514 345 919 450 428 463 . 753 Legs 358 | . . . 50 308 . . . . Wheels . | . . . . . . . . . Hover 258 | . . . . . . 81 170 7 Flight 1 | . . . . 1 . . . . Fastest Speed 50 | 50 160 160 160 101 163 162 97 101 Average Speed 221 | 83 183 193 332 207 168 185 104 205 Slowest Speed 1250 | 160 240 240 950 1250 1250 1100 162 1100 Overloaded Moves . | . . . . . . . . . Propulsion Burnouts . | . . . . . . . . . Robots Hopped . | . . . . . . . . . Potential Cave-ins . | . . . . . . . . . Cave-ins Triggered 1 | . . . 1 . . . . . Exploration Rate (%) 45 | 3 77 69 62 65 12 15 87 22 Regions Visited 8 Branch Regions 2 Pre-discovered Areas . | . . . . . . . . . Known Exits Taken 6 | 1 1 1 1 1 1 . . . Unknown Exits Taken . | . . . . . . . . . Scrap Searched 10 | . . . 10 . . . . . Spaces Dug 1 | . . . 1 . . . . . Terrain Destroyed 238 | . 17 . 14 4 . 12 . 191 Melee . | . . . . . . . . . Projectile 18 | . . . 14 2 . . . 2 AOE 220 | . 17 . . 2 . 12 . 189 Terrain Rammed . | . . . . . . . . . Walls Destroyed . | . . . . . . . . . Machines Disabled . | . . . . . . . . . Actions | -11 -10 -10 -10 -8 -7 -6 -6 -6 --------- Run | Yrd Mat Min Sub Mat Fac Fac Was Fac Total 6461 | 65 608 496 1287 1050 517 764 187 1487 Wait 819 | 4 5 132 92 108 15 32 9 422 Move 4723 | 51 513 344 1103 765 428 557 169 793 Hop . | . . . . . . . . . Pick Up 98 | 5 20 6 2 25 . 6 4 30 Fast Attach 57 | . . 1 5 24 6 2 . 19 Attach 66 | 5 4 . 2 12 . 16 3 24 Detach 18 | . . . 1 5 . 2 2 8 Swap 22 | . 2 3 1 7 5 2 . 2 Drop 79 | . 2 3 2 37 7 4 . 24 Fire 548 | . 62 6 79 61 50 139 . 151 Melee 15 | . . . . . . 4 . 11 Ram . | . . . . . . . . . Kick . | . . . . . . . . . Crush 15 | . . 1 . 6 6 . . 2 Escape Stasis . | . . . . . . . . . Rewire 1 | . . . . . . . . 1 Trap . | . . . . . . . . . Miscellaneous . | . . . . . . . . . Route ------- -11/Scrapyard -10/Materials (discovered 5 exits: *Mat x2 / *Min x2 / *Sub) -10/Mines (discovered 3 exits: *Mat x2 / *Sub) -10/Subcaves (discovered 3 exits: *Mat x2 / *Rec) -8/Materials (discovered 3 exits: *Fac x3) -7/Factory -6/Factory -6/Waste -6/Factory (discovered 2 exits: Low x2) History --------- Turn | Location | Event 6 | -11/Scrapyard | Identified exit to Materials 6 | -11/Scrapyard | Discovered exit to Materials (range 14) 57 | -11/Scrapyard | Entered Materials 57 | -10/Materials | Evolved 1 slot: Propulsion x1 303 | -10/Materials | Build established: Hacker-Mutant 359 | -10/Materials | Identified exit to Subcaves 359 | -10/Materials | Discovered exit to Subcaves (range 7) 375 | -10/Materials | Identified exit to Materials 375 | -10/Materials | Discovered exit to Materials (range 12) 612 | -10/Materials | Discovered exit to Materials (range 18) 790 | -10/Materials | Identified exit to Mines 790 | -10/Materials | Discovered exit to Mines (range 9) 893 | -10/Materials | Discovered exit to Mines (range 8) 1157 | -10/Materials | Entered Mines 1158 | -10/Mines | Assembled infested the area 1163 | -10/Mines | Assisted by a Guerilla fighting off Assembled 1166 | -10/Mines | Met a Derelict bent on vengeance 1202 | -10/Mines | Found the Drone Emporium 1215 | -10/Mines | Found Prototype Device 1722 | -10/Mines | Discovered exit to Materials (range 7) 1767 | -10/Mines | Discovered exit to Materials (range 12) 1959 | -10/Mines | Discovered exit to Subcaves (range 6) 1981 | -10/Mines | Entered Subcaves 1981 | -10/Subcaves | Accompanied by 2 allies 1986 | -10/Subcaves | Led the pair of lost Derelicts to an unsafe place 2033 | -10/Subcaves | Identified exit to Materials 2033 | -10/Subcaves | Discovered exit to Materials (range 16) 2421 | -10/Subcaves | Identified exit to Recycling 2421 | -10/Subcaves | Discovered exit to Recycling (range 7) 2429 | -10/Subcaves | Crushed by falling debris 2527 | -10/Subcaves | Shifting Twisted Machinery released Piercing Trap 2594 | -10/Subcaves | Shifting Twisted Machinery released Battle Cannon 3133 | -10/Subcaves | Shifting Twisted Machinery released Battle Cannon 3136 | -10/Subcaves | Shifting Twisted Machinery released Battle Rifle 3261 | -10/Subcaves | Shifting Twisted Machinery released Battle Cannon 3261 | -10/Subcaves | Shifting Twisted Machinery released Battle Rifle 4148 | -10/Subcaves | A swath of the cavern ceiling suddenly collapsed 4855 | -10/Subcaves | Ambushed by angry Subdweller bent on revenge 5744 | -10/Subcaves | Discovered exit to Materials (range 12) 5826 | -10/Subcaves | Visited 4L-MR0's lab 5829 | -10/Subcaves | Core integrity fell below 50% 5898 | -10/Subcaves | Found Arachnoskeleton 5899 | -10/Subcaves | Attached Arachnoskeleton, gained temporary slots: Propulsion x3 5987 | -10/Subcaves | Entered Materials 5987 | -8/Materials | Evolved 4 slots: Power x1, Utility x3 6038 | -8/Materials | Garrison activated, responded to threat 6320 | -8/Materials | Met 7R-MNS 6322 | -8/Materials | Identified exit to Factory 6346 | -8/Materials | Identified Decoy Drone Bay 6595 | -8/Materials | Lost 3 parts (2n1w) 7354 | -8/Materials | Core integrity fell below 50% 7381 | -8/Materials | Lost 3 parts (2u1w) 7972 | -8/Materials | Entered Factory 7972 | -7/Factory | Evolved 2 slots: Propulsion x1, Utility x1 7973 | -7/Factory | Caught up to 7R-MNS 8451 | -7/Factory | Garrison activated, responded to threat 8856 | -7/Factory | Identified exit to Factory 8856 | -7/Factory | Discovered exit to Factory (range 13) 8881 | -7/Factory | Entered another Factory area 8881 | -6/Factory | Evolved 2 slots: Propulsion x1, Utility x1 8882 | -6/Factory | Caught up to 7R-MNS 9022 | -6/Factory | Garrison activated, responded to threat 9022 | -6/Factory | Spotted B-75 Beast 9982 | -6/Factory | Lost 12 parts (2p4n5u1w) 9985 | -6/Factory | Destroyed 7 combat bots 10277 | -6/Factory | Sucked down chute 10277 | -6/Factory | Entered Waste 10286 | -6/Waste | Spotted C-40 Crusher 10292 | -6/Waste | Spotted C-40 Crusher 10295 | -6/Waste | Spotted C-40 Crusher 10301 | -6/Waste | Spotted C-40 Crusher 10302 | -6/Waste | Spotted C-40 Crusher 10319 | -6/Waste | Identified exit to Factory 10319 | -6/Waste | Discovered exit to Factory (range 49) 10373 | -6/Waste | Lost 11 allies 10391 | -6/Waste | Crushed by Compactor (1 part destroyed, 1 dropped) 10393 | -6/Waste | Crushed by Compactor (1 part destroyed, 1 dropped) 10396 | -6/Waste | Crushed by Compactor (0 parts destroyed, 1 dropped) 10419 | -6/Waste | Spotted C-40 Crusher 10470 | -6/Waste | Entered Factory 10542 | -6/Factory | Fabricated Arm. Heavy Treads (x1) 11203 | -6/Factory | Garrison activated, responded to threat 11257 | -6/Factory | Destroyed 8 combat bots 11425 | -6/Factory | Spotted B-75 Beast 11458 | -6/Factory | Rewired B-75 Beast 11707 | -6/Factory | Garrison activated, responded to threat 11726 | -6/Factory | Core integrity fell below 50% 11815 | -6/Factory | Found Prototype Launcher 11815 | -6/Factory | Identified Rocket Array 12299 | -6/Factory | Found Prototype Launcher 12300 | -6/Factory | Identified Scatter Rocket Array 12443 | -6/Factory | Identified exit to Lower Caves 12589 | -6/Factory | Lost 5 parts (3p1n1u) 12616 | -6/Factory | Core integrity fell below 20% 12656 | -6/Factory | Lost 6 parts (1p1n3u1w) 12990 | -6/Factory | Destroyed by H-66 Slayer with Gauss Rifle Last Messages --------------- 12966_ U-05 Engineer builds a Wall. 12966_ U-05 Engineer lays Concrete. 12969_ U-05 Engineer builds a Wall. 12970_ U-05 Engineer lays Concrete. 12973_ U-05 Engineer builds a Wall. 12977_ Acquired Targeting Computer. 12977_ U-05 Engineer builds a Wall. 12978_ RBHFGNW,9KXN6GS6SY7O:S#LVBIYOXPE 12978_ U-05 Engineer destroyed. 12980_ Acquired 10 matter. 12981_ K-01 Serf collects debris. 12982_ R-10 Processor collects Lgt. Angular Momentum Engine+. 12985_ K-01 Serf collects debris. 12986_ R-10 Processor collects Mace. 12987_ Penetrated by Slug. 12989_ K-01 Serf collects debris. 12990_ Penetrated by Slug. 12990_ Hvy. Plasma Cannon destroyed. 12990_ Penetrated by Slug. Map ----- +----------------------------------------------------+ | ????????????????? ###### ##### # | | ???????????????? ######## ####### # / | | ?????????????? ########+######"" ## | | ??????????????? #! #### #### | | ??????????????? # #### #### | | ???????????????## #! [ #### | | ???????????????## # | | ??????????????? # # ###"" """"" | | ?????????????!? # # ###"" | | ??????????? ![ # # ###"T """"" | | ??????????? # [[=#= " = ####"" | | ??????????? %*|/ ####"" """"" | | ??????????? # *= #[* = " #### | | ?????????? #= =![[ ! #### """"" | | ?????????? #% [ = ! ] #### | | ?????????? =# #####+######### # ? """"" | | ??????????####### R [ k | | ?????????? % % ##+#### """"" | | ?????????? # # | | ?????????? # ?? """"" | | ?????????? " u# | | ?????????? # | | ?????????####+# # | | ?????????? k # # ####+ | | ??????????? "" # # # ? # | | ???????????? "" # |@* # ## ??????? | | ???????????? T" # ! # ## ??????? | | ?????????????"" # # ##???????? | | ??????????????? # # #????????? | | ????????????????# # #????????? | | ????????????????# # #????? | | ????????????????# #####+##?????#### | | ????????????????# ##???????????## | | ??????????????? ; ##???????????## | | ????????????? ; #???????????## | | ?????????????###; #???????????## | | ?????????????? #???????????## | | ?????????????? #???????????## | | ????????????? h #???????????## | | ??????????????? #???????????## | | ????????????????? ????????????## | | ????????????????????##### ???????????????## | | ????????????????????????? ?????????????????## | | ??????????????????????????????????????????????## ? | | ?????????????????????????????????????????????????? | | ?????????????????????????????????????????????????? | | ?????????????????????????????????????????????????? | | ???????????????????????????????????????????????? | | ???????????????????????????????????????????????? | | ???????????????????????????????????????????????? | +----------------------------------------------------+ Best States ------------- Heat Dissipation 65 Energy Generation 32 Energy Capacity 500 Matter Stores 300 Matter Capacity 300 Sight Range 16 Robot Scan Range 14 Terrain Scan Range 16 Terrain Scan Density 110 ECM Strength 2 Additional Mass Support 9 Armor Coverage 450 Resistance: KI 65 Resistance: TH 35 Resistance: EX 35 Resistance: EM 60 Resistance: I 35 Resistance: S 35 Resistance: P 35 Evasion (%) 55 Targeting Accuracy 5 Target Analysis 5 Recoil Reduction 5 Offensive Hacking 32 Item Schematics ----------------- Imp. Actuator Array | -6/Factory | Hacked Lrn. Proton Cannon | -6/Factory | Hacked Imp. Armor Integrity Analyzer | -6/Factory | Hacked Imp. Remote Datajack | -6/Factory | Hacked Robot Schematics ------------------ T-07 Excavator | -7/Factory | Hacked M-28 Smith | -6/Factory | Hacked Fabricated ------------ Arm. Heavy Treads | x1 | -6/Factory | Preloaded Repaired ---------- Nothing Studied --------- Carbon-fiber Leg | -8/Materials | Hacked Lgt. Nuclear Core | -8/Materials | Hacked Ion Engine | -8/Materials | Hacked Shotgun | -8/Materials | Hacked Lgt. Angular Momentum Engine | -7/Factory | Hacked EM Pulse Cannon | -7/Factory | Hacked Lightning Gun | -7/Factory | Hacked Alien Tech Used ----------------- None Achievements -------------- My Bad Challenges ------------ None Game ------ Seed DisruptorCoordinationBox Manual? 0 Play Time 01:04:29 Cumulative 103.5 hours Start 2025.11.17 @ 14:15:03 End 2025.11.17 @ 15:16:36 Sessions 1 Manual Loads 0 Difficulty Explorer Special Mode None Game No. 119 Rogue 0 Adventurer 0 Explorer 119 Win Type - Total 0 Types 0/0/0/0/0/0/0/0/0/0 Lore% 61 Gallery% 60 Achievement% 47 Wizard Run 0 Options --------- Layout 1 ASCII 0 Keyboard 0 Movement Mouse Keybinds 0 Fullscreen 1 Font 24/Smallcaps Map View 50x35 Zoom Use 0% Tactical HUD 1 Map Filters NONE Filters NONE Steam 1 RUN: 085f914a-2c76-42c9-a2de-d39d2a771b40